Cogmind - Beta 16 @@@ ROGUE MODE // 2025.12.23 @ 04:46:02 Player: tsintsir Result: Destroyed by G-73 Enforcer with Phase Gun Performance ------------- Evolutions (6) 3000 Regions Visited (17) 3400 Robots Destroyed (54) 270 Value Destroyed (2298) 2298 Prototype IDs (11) 220 Alien Tech Used (0) 0 Bonus (4611) 4611 TOTAL SCORE: 13799 Bonus ------- Follower Combat Kills 1934 Entered Garrisons 400 Used RIF Installer 1000 Entered DSFs 500 Network Hubs Disabled 200 Built Enhanced Grunts 300 Met R17 at Cetus 500 Friendly Fire -223 Cogmind --------- Core Integrity 0/1150 Matter 178/300 Energy 58/100 System Corruption 8% Temperature Cool (1) Movement Core (50) Location -4/Armory Parts ------- > --- POWER (2) -------- (None) > --- PROPULSION (4) --- (None) > --- UTILITY (11) ----- Triangulator Experimental Optical Array Experimental Terrain Scan Processor Transmission Jammer Relay Coupler [Swarmer] (20) Component Analysis Suite > --- WEAPON (2) ------- (None) > --- INVENTORY (5) ---- Light Neutrino Core Fusion Reactor Advanced Cloaking Device Advanced Cloaking Device Hardcell Cannon Peak State ------------ > --- POWER ------------ Light Neutrino Core Fusion Reactor > --- PROPULSION ------- Cooled Nuclear Pulse Thruster Cooled Nuclear Pulse Thruster Nuclear Pulse Array > --- UTILITY ---------- Advanced Cooling System Triangulator Experimental Optical Array Experimental Terrain Scan Processor Armor Integrity Analyzer Transmission Jammer Experimental ECM Suite Advanced Cloaking Device Relay Coupler [Swarmer] Component Analysis Suite > --- WEAPON ----------- (None) > --- INVENTORY -------- Advanced Cloaking Device Advanced Cloaking Device Hardcell Cannon [Rating: 101] Favorites ----------- Power Micro Nuclear Core Engine Light Ion Engine Power Core Micro Nuclear Core Reactor Light Antimatter Reactor Propulsion Nuclear Pulse Array Leg Enhanced Flexi-carbon Leg Wheel Wheel Hover Unit Antigrav System Flight Unit Nuclear Pulse Array Utility Transmission Jammer Device Transmission Jammer Storage Small Storage Unit Processor Advanced Visual Processing Unit Hackware Improved Hacking Suite Protection Centrium Medium Armor Plating Weapon Lightning Gun Energy Gun Lightning Gun Energy Cannon EM Pulse Cannon Ballistic Gun Light Assault Rifle Ballistic Cannon Hardcell Cannon Launcher Mini Grenade Launcher Special Weapon Mining Laser Special Melee Weapon Datajack Build | -11 -10 -9 -9 -8 -7 -7 -7 -6 -6 -6 -5 -5 -5 -5 -5 -4 -4 ------- Run | Yrd Mat Mat Sto Mat Fac Gar Fac Fac DSF Gar Fac Ext Cet Arc Hub Fac Arm Slots Evolved 12 | . . 2 . 2 2 . . 2 . . 2 . . . . 2 . Power 1 | . . . . . . . . 1 . . . . . . . . . Propulsion 2 | . . . . 1 . . . 1 . . . . . . . . . Utility 9 | . . 2 . 1 2 . . . . . 2 . . . . 2 . Weapon . | . . . . . . . . . . . . . . . . . . Parts Attached 94 | 8 5 3 3 8 3 5 8 1 1 7 15 1 3 1 2 10 10 Power 18 | 1 . 1 1 2 1 1 1 . . 2 3 . . . 1 2 2 Engine 6 | 1 . 1 1 1 . . . . . 2 . . . . . . . Core 10 | . . . . 1 1 1 1 . . . 3 . . . 1 1 1 Reactor 2 | . . . . . . . . . . . . . . . . 1 1 Propulsion 22 | 3 2 1 . 4 . 1 1 . . 1 2 1 . . 1 2 3 Treads . | . . . . . . . . . . . . . . . . . . Leg 1 | . . . . . . . . . . . . . . . . 1 . Wheel 3 | 3 . . . . . . . . . . . . . . . . . Hover 1 | . . . . . . . . . . . . 1 . . . . . Flight 17 | . 2 1 . 4 . 1 1 . . 1 2 . . . 1 1 3 Utility 38 | 2 2 1 1 2 2 1 4 . 1 3 7 . 2 1 . 5 4 Device 16 | 1 . 1 1 1 2 . 3 . . . 4 . . . . 1 2 Storage 1 | 1 . . . . . . . . . . . . . . . . . Processor 12 | . 2 . . 1 . 1 1 . . . 2 . 1 . . 2 2 Hackware 8 | . . . . . . . . . 1 3 1 . . 1 . 2 . Protection 1 | . . . . . . . . . . . . . 1 . . . . Artifact . | . . . . . . . . . . . . . . . . . . Weapon 16 | 2 1 . 1 . . 2 2 1 . 1 3 . 1 . . 1 1 Energy Gun 6 | 1 . . . . . 1 1 . . 1 2 . . . . . . Energy Cannon 1 | . . . . . . . 1 . . . . . . . . . . Ballistic Gun 2 | 1 . . . . . . . . . . . . 1 . . . . Ballistic Cannon 1 | . . . . . . . . . . . . . . . . . 1 Launcher 2 | . . . 1 . . . . . . . 1 . . . . . . Special Weapon 1 | . 1 . . . . . . . . . . . . . . . . Impact Weapon . | . . . . . . . . . . . . . . . . . . Slashing Weapon . | . . . . . . . . . . . . . . . . . . Piercing Weapon . | . . . . . . . . . . . . . . . . . . Special Melee Weapon 3 | . . . . . . 1 . 1 . . . . . . . 1 . Unidentified Prototypes 11 | . . . . 1 . . . . . . . . 2 . . 2 6 Corrupted Parts 1 | . . . . . . . . . . 1 . . . . . . . System Corruption 1 | . . . . . . . . . . 1 . . . . . . . Parts Lost 55 | . . . 1 1 . 12 . . 1 13 . . 2 . 7 9 9 Power 12 | . . . 1 . . 3 . . 1 2 . . . . 2 2 1 Propulsion 12 | . . . . 1 . 1 . . . 3 . . . . 3 . 4 Utility 20 | . . . . . . 4 . . . 5 . . 1 . 1 5 4 Weapon 11 | . . . . . . 4 . . . 3 . . 1 . 1 2 . Highest Loss Streak 13 | . . . 1 1 . 3 . . 1 13 . . 1 . 7 3 6 To Critical Strikes 1 | . . . . . . . . . . . . . 1 . . . . Average Backups 3 | 1 3 3 4 4 5 3 5 5 4 4 3 3 3 4 4 3 2 Power . | . . 1 . . 1 . . . . . 1 1 . 1 1 . . Propulsion 1 | . 2 . 1 1 3 2 1 1 1 . . 1 1 1 1 . . Utility . | . . . . . . . 3 3 3 3 . . . . 1 1 1 Weapon . | . 1 1 2 1 . . . . . . . 1 . 1 . . 1 Tool/Special . | . . . . . . . . . . . . . . . . . . Unused Backups 13 | . 1 1 . 4 1 . 1 . . . 1 1 . . . 1 2 Power 1 | . . . . . . . . . . . 1 . . . . . . Propulsion 5 | . 1 1 . 1 1 . . . . . . 1 . . . . . Utility 4 | . . . . . . . 1 . . . . . . . . 1 2 Weapon 3 | . . . . 3 . . . . . . . . . . . . . Tool/Special . | . . . . . . . . . . . . . . . . . . Average Slot Usage (%) 81 | . 96 98 100 99 96 82 82 73 83 75 81 87 86 88 87 37 52 Engine 1 | . 14 11 11 7 . . . . . 1 . . . . . . . Core 6 | . . . . 1 7 5 6 6 6 . 9 11 11 11 10 1 1 Flight 13 | . 11 22 22 27 23 23 22 20 20 18 10 10 11 11 11 1 4 Device 20 | . 13 21 22 26 34 21 23 13 13 9 22 23 23 19 17 9 21 Processor 18 | . 3 22 22 18 15 18 25 26 26 24 16 17 16 17 17 13 14 Hackware 7 | . . . . . . . . . 3 8 10 11 11 14 17 8 8 Energy Gun 5 | . 14 . . . . 1 2 6 6 4 8 11 9 9 10 . . Ballistic Gun 1 | . 11 11 3 . . . . . . . . . . 1 . . . Launcher 1 | . . . 7 9 7 6 . . . . . . . . . . . Special Weapon 1 | . 2 11 11 9 7 1 . . . . . . . . . . . Peak Build Rating 101 | 7 8 11 16 28 37 37 43 40 45 48 83 81 86 85 83 50 101 Average Rating 54 | 6 7 10 12 21 34 33 39 39 42 39 74 80 80 82 81 36 61 On Entrance 37 | . 7 8 11 12 28 37 25 39 40 42 14 81 81 82 83 40 47 Avg Prop Armor Cover (%) 9 | . . . . . . . 13 . . 6 . . . . . . . Naked Turns . | . . . . . . . . . . . . . . . . . . Heaviest Build 27 | 11 11 7 12 10 14 14 19 12 12 16 26 26 27 26 25 14 20 Greatest Support 28 | 26 20 8 8 15 15 15 16 16 16 16 26 26 26 26 26 28 25 Greatest Overweight (x) 8 | 2 2 . 1 . . . 1 . . . . 8 1 . 3 3 2 Average Overweight (x) . | . . . . . . . . . . . . . . . . . . Largest Inventory Capacity 8 | 8 8 5 5 5 5 5 5 5 5 5 5 5 5 5 5 5 5 Average Capacity 5 | 7 6 5 5 5 5 5 5 5 5 5 5 5 5 5 5 5 5 Most Carried 5 | 3 5 5 5 5 5 5 5 5 4 5 5 5 5 5 4 5 5 Average Carried 4 | 1 3 2 4 4 4 3 4 4 4 4 3 4 3 4 3 3 3 Final Capacity 8 | 8 5 5 5 5 5 5 5 5 5 5 5 5 5 5 5 5 5 Final Carried 5 | 3 5 3 4 5 5 5 5 4 4 3 4 5 4 4 3 3 5 Class Distribution -------------------- 32% | Scout 18% | Sprinter 13% | Mutant 10% | Commander-Mutant 9% | Scavenger-Scout 7% | Infiltrator-Mutant 6% | Hacker-Mutant Dominant Class ---------------- Mutant | -10/Materials Scavenger-Scout | -9/Materials Scavenger-Scout | -9/Storage Scavenger-Scout | -8/Materials Scout | -7/Factory Sprinter | -7/Garrison Sprinter | -7/Factory Sprinter | -6/Factory Sprinter | -6/DSF Sprinter | -6/Garrison Scout | -5/Factory Scout | -5/Extension Commander-Mutant | -5/Cetus Commander-Mutant | -5/Archives Hacker-Mutant | -5/Hub_04(d) Hacker-Mutant | -4/Factory Infiltrator-Mutant | -4/Armory Resources | -11 -10 -9 -9 -8 -7 -7 -7 -6 -6 -6 -5 -5 -5 -5 -5 -4 -4 ----------- Run | Yrd Mat Mat Sto Mat Fac Gar Fac Fac DSF Gar Fac Ext Cet Arc Hub Fac Arm Matter Collected 1523 | 304 42 . . 27 . 136 100 . . 267 252 10 273 102 10 . . Remotely . | . . . . . . . . . . . . . . . . . . Salvage Created 1974 | 226 79 . . 114 . 210 100 . . . 280 422 163 329 51 . . Parts 86 | 17 10 . . 8 . 9 7 . . . 7 10 2 11 5 . . Haulers Intercepted 3 | . . . . 1 . . . . . . 2 . . . . . . Recyclers Shooed 1 | 1 . . . . . . . . . . . . . . . . . Parts Field Recycled . | . . . . . . . . . . . . . . . . . . Retrieved Matter . | . . . . . . . . . . . . . . . . . . Parts Self-Destructed . | . . . . . . . . . . . . . . . . . . Prevented . | . . . . . . . . . . . . . . . . . . Parts Restored . | . . . . . . . . . . . . . . . . . . Kills | -11 -10 -9 -9 -8 -7 -7 -7 -6 -6 -6 -5 -5 -5 -5 -5 -4 -4 ------- Run | Yrd Mat Mat Sto Mat Fac Gar Fac Fac DSF Gar Fac Ext Cet Arc Hub Fac Arm Combat Hostiles Destroyed 18 | . 3 . . 1 . 7 . . . . . 4 3 . . . . Guns 7 | . 3 . . . . . . . . . . 3 1 . . . . AOE 11 | . . . . 1 . 7 . . . . . 1 2 . . . . Classes Destroyed 13 | 3 2 . . 3 . 2 . . . . 1 1 1 . . . . Worker 6 | 2 . . . . . . 2 . . . 1 1 . . . . . Builder 3 | . . . . 3 . . . . . . . . . . . . . Tunneler 5 | 5 . . . . . . . . . . . . . . . . . Hauler 3 | . . . . 1 . . . . . . 2 . . . . . . Recycler 3 | 1 . . . 1 . . . . . . . 1 . . . . . Operator 11 | . . . . . . . . . . . 1 . . 9 1 . . Watcher 4 | . 1 . . . . . 1 . . . . . 1 . 1 . . Swarmer 3 | . 3 . . . . . . . . . . . . . . . . Grunt 10 | . . . . 1 . 5 . . . . . 3 1 . . . . Brawler 1 | . . . . . . . . . . . . 1 . . . . . Cetus Guard 2 | . . . . . . . . . . . . . 2 . . . . Savage 1 | . . . . . . . . . . . . . 1 . . . . Butcher 1 | . . . . . . 1 . . . . . . . . . . . Guerrilla 1 | . . . . . . 1 . . . . . . . . . . . Best Kill Streak 6 | 4 3 . . 6 . 4 2 . . . 2 3 2 3 1 . . Combat Bots Only 4 | . 3 . . 1 . 4 . . . . . 2 2 . . . . Max Kills in Single Turn 3 | 1 1 . . 2 . 3 1 . . . 1 3 1 2 1 . . Gunslinging . | . . . . . . . . . . . . . . . . . . Exploded 3 | . . . . 1 . 3 . . . . . 1 1 . . . . Melee . | . . . . . . . . . . . . . . . . . . Uniques/NPCs Destroyed . | . . . . . . . . . . . . . . . . . . Combat | -11 -10 -9 -9 -8 -7 -7 -7 -6 -6 -6 -5 -5 -5 -5 -5 -4 -4 -------- Run | Yrd Mat Mat Sto Mat Fac Gar Fac Fac DSF Gar Fac Ext Cet Arc Hub Fac Arm Hostile Shots Fired 558 | . 24 . 10 6 18 166 15 . 2 89 . 10 17 6 10 75 110 Missed 285 | . 8 . 3 2 16 99 8 . 1 42 . 6 4 4 6 31 55 Hits 273 | . 16 . 7 4 2 67 7 . 1 47 . 4 13 2 4 44 55 Melee 1 | . . . . . . . 1 . . . . . . . . . . Projectile 272 | . 16 . 7 4 2 67 6 . 1 47 . 4 13 2 4 44 55 AOE 10 | . . . . . . 1 2 . 1 . . . . . . . 6 Critical Strikes 13 | . . . . . . 4 . . . 1 . 1 3 . 1 1 2 Damage Taken 5254 | . 168 . 93 81 10 913 137 . 79 750 . 140 328 65 262 953 1275 Core 2149 | . 58 . 40 17 . 349 61 . 30 351 . 12 28 . 32 610 561 Absorbed by Shields 93 | . . . . . . 32 . . . . . 22 39 . . . . Core Remaining (%) 78 | 100 76 . 90 96 . . 41 . . 55 . . . . 92 . . Volleys Fired 213 | 24 14 . . 9 5 15 14 . . 9 25 20 27 42 8 . 1 Largest 2 | 2 2 . . 1 1 1 1 . . 1 2 2 2 2 2 . 1 Hottest 120 | 60 100 . . 100 100 100 63 . . 69 120 120 120 120 120 . 55 Shots Fired 340 | 48 25 . . 9 5 15 14 . . 9 47 40 46 66 15 . 1 Gun 298 | 48 23 . . . . 1 13 . . 9 45 40 38 66 15 . . Cannon 2 | . . . . . . . 1 . . . . . . . . . 1 Launcher 25 | . . . . 7 . 8 . . . . 2 . 8 . . . . Special 15 | . 2 . . 2 5 6 . . . . . . . . . . . Kinetic 65 | 24 12 . . . . . . . . . . . 10 18 . . 1 Thermal 52 | 24 13 . . 2 5 7 . . . 1 . . . . . . . Explosive 25 | . . . . 7 . 8 . . . . 2 . 8 . . . . Electromagnetic 198 | . . . . . . . 14 . . 8 45 40 28 48 15 . . Robot Hit Streak 9 | 8 9 . . 3 1 3 3 . . 5 7 5 8 5 4 . . Robot Miss Streak 8 | 8 2 . . 3 2 2 1 . . 1 2 5 3 7 2 . . Penetration Max . | . . . . . . . . . . . . . . . . . . Secondary Targets 4 | . 3 . . . . . . . . . . 1 . . . . . Max Gunslinging Chain 1 | . 1 . . . . . . . . . . 1 . . . . . Shots Hit Robots 179 | 27 15 . . 4 1 5 10 . . 12 23 19 20 35 7 1 . Core Hits 119 | 10 8 . . 12 . 16 5 . . 1 8 10 26 17 4 . 2 Critical Kills 1 | . . . . . . . . . . . . . . 1 . . . Critical Parts Destroyed 1 | . . . . . . . . . . . . . . 1 . . . Critical Strikes 5 | . . . . . . . . . . . . . 1 4 . . . Destroy 2 | . . . . . . . . . . . . . . 2 . . . Corrupt 3 | . . . . . . . . . . . . . 1 2 . . . Melee Attacks 16 | . . . . . . 2 . . . 13 . . . . . 1 . Impact . | . . . . . . . . . . . . . . . . . . Slashing . | . . . . . . . . . . . . . . . . . . Piercing . | . . . . . . . . . . . . . . . . . . Sneak Attacks 6 | . . . . . . . . . . 6 . . . . . . . Combat Hostiles . | . . . . . . . . . . . . . . . . . . Follow-up Attacks . | . . . . . . . . . . . . . . . . . . Damage Inflicted 5623 | 261 144 . . 445 24 705 220 . . 21 505 841 1140 1130 152 14 21 Guns 2656 | 261 144 . . . . . 126 . . 21 411 369 297 875 152 . . Cannons 26 | . . . . . . . 26 . . . . . . . . . . Explosions 2837 | . . . . 445 . 705 39 . . . 94 456 843 255 . . . Melee . | . . . . . . . . . . . . . . . . . . Ramming 80 | . . . . . . . 29 . . . . 16 . . . 14 21 Kinetic 506 | 89 65 . . . . . . . . . . . 54 298 . . . Thermal 1080 | 172 79 . . . 24 . 39 . . . 55 456 . 255 . . . Explosive 2032 | . . . . 445 . 705 . . . . 39 . 843 . . . . Electromagnetic 1925 | . . . . . . . 152 . . 21 411 369 243 577 152 . . Impact . | . . . . . . . . . . . . . . . . . . Slashing . | . . . . . . . . . . . . . . . . . . Piercing . | . . . . . . . . . . . . . . . . . . Highest Corruption 8 | . . . . . . 1 1 . . 1 . . . . . 2 8 Average Corruption 1 | . . . . . . 1 1 . . 1 . . . . . 2 4 Corruption Purged . | . . . . . . . . . . . . . . . . . . Corruption Blocked . | . . . . . . . . . . . . . . . . . . Effects 17 | . . . . . . 2 6 . . . . . . . . 1 8 Message Errors 9 | . . . . . . 1 3 . . . . . . . . . 5 Matter Fused 2 | . . . . . . . 1 . . . . . . . . . 1 Energy Discharges 3 | . . . . . . 1 1 . . . . . . . . . 1 Parts Rejected 1 | . . . . . . . 1 . . . . . . . . . . Data Loss (minor) 2 | . . . . . . . . . . . . . . . . 1 1 Overload Shots . | . . . . . . . . . . . . . . . . . . Overflow Damage 212 | . . . . 32 . 15 8 . . . 1 27 . 56 73 . . Projectiles . | . . . . . . . . . . . . . . . . . . Explosions 212 | . . . . 32 . 15 8 . . . 1 27 . 56 73 . . Melee . | . . . . . . . . . . . . . . . . . . Knockbacks . | . . . . . . . . . . . . . . . . . . Impact . | . . . . . . . . . . . . . . . . . . Kinetic . | . . . . . . . . . . . . . . . . . . Secondary . | . . . . . . . . . . . . . . . . . . Self-Inflicted Damage 157 | . . . . 20 . 5 13 . . . . 6 . . 98 7 8 Shots 5 | . . . . 3 . 1 . . . . . . . . 1 . . Rammed 38 | . . . . . . . 4 . . . . 7 . . . 2 25 Targets Rammed 38 | . . . . . . . 4 . . . . 7 . . . 2 25 Kicked . | . . . . . . . . . . . . . . . . . . Crushed . | . . . . . . . . . . . . . . . . . . Highest Temperature 348 | 60 70 . . 8 . 2 24 . . 5 . . . 348 . . 13 Average Temperature 51 | 26 25 . . 4 . 1 10 . . 4 . . . 164 . . 13 Received Heat Transfer 879 | . 66 . 30 36 . 244 6 . . 159 . 29 22 . 12 178 97 Effects 3 | . . . . . . . . . . . . . . 3 . . . Energy Bleed 1 | . . . . . . . . . . . . . . 1 . . . Interference 2 | . . . . . . . . . . . . . . 2 . . . Siege Activations . | . . . . . . . . . . . . . . . . . . Martial Activations . | . . . . . . . . . . . . . . . . . . Shielding Activations . | . . . . . . . . . . . . . . . . . . Robots Disrupted 8 | . . . . . . . 1 . . . 2 1 2 2 . . . Combat Hostiles 2 | . . . . . . . . . . . . 1 1 . . . . Robots Corrupted 2 | . . . . . . . . . . . . . . 2 . . . Combat Hostiles . | . . . . . . . . . . . . . . . . . . Parts Fried 20 | . . . . . . . . . . . 4 3 . 13 . . . Impact Corruptions . | . . . . . . . . . . . . . . . . . . Robots Melted . | . . . . . . . . . . . . . . . . . . Combat Hostiles . | . . . . . . . . . . . . . . . . . . Parts Melted . | . . . . . . . . . . . . . . . . . . Heat Transferred 1275 | 400 175 . . . 50 . 50 . . . 100 300 . 200 . . . Parts Sabotaged . | . . . . . . . . . . . . . . . . . . Parts Stolen . | . . . . . . . . . . . . . . . . . . Parts Stripped . | . . . . . . . . . . . . . . . . . . Power Chain Reactions 8 | . . . . . . . 1 . . . 2 2 . 3 . . . Alert | -11 -10 -9 -9 -8 -7 -7 -7 -6 -6 -6 -5 -5 -5 -5 -5 -4 -4 ------- Run | Yrd Mat Mat Sto Mat Fac Gar Fac Fac DSF Gar Fac Ext Cet Arc Hub Fac Arm Maximum Alert Level 2 | . . . . . . 2 1 . . 1 1 1 2 2 2 1 . Low Security (%) 68 | 100 100 100 100 100 100 62 86 100 100 47 41 88 6 4 5 65 100 Level 1 27 | . . . . . . 34 13 . . 52 58 11 67 80 61 34 . Level 2 4 | . . . . . . 3 . . . . . . 26 15 32 . . Level 3 . | . . . . . . . . . . . . . . . . . . Level 4 . | . . . . . . . . . . . . . . . . . . Level 5 . | . . . . . . . . . . . . . . . . . . High Security . | . . . . . . . . . . . . . . . . . . Max Security . | . . . . . . . . . . . . . . . . . . Peak Influence 585 | 10 68 28 15 68 40 419 221 43 33 380 291 392 456 411 585 270 127 Initial 270 | . . 28 . . 15 . 219 43 33 17 178 132 216 170 136 270 92 Average 145 | 2 29 3 3 26 14 127 112 43 32 212 225 89 308 359 376 187 78 Influence Increases 4535 | 40 108 . 32 111 25 504 148 5 . 533 331 701 500 371 676 255 195 Destroy 0b10 Robot/C 1100 | . 60 . . 20 . 140 . . . 120 . 300 240 80 140 . . Destroy 0b10 Robot/NC 185 | 40 5 . . 25 . . 15 . . . 20 15 10 45 10 . . Destroy Leader 124 | . 12 . . 2 . 10 2 . . 10 4 32 10 . 42 . . Allied During Kill 608 | . . . . . . . . . . 33 . 171 125 125 154 . . Successful Hack 158 | . . . 2 6 10 . 52 5 . . 39 39 5 . . . . Disable Machine 330 | . 15 . . 15 . . . . . . 75 15 15 45 135 . 15 Anti-Garrison Action 200 | . . . . . . 50 . . . 150 . . . . . . . Destroy Structure 615 | . 1 . . 28 . 19 4 . . 55 178 24 80 46 180 . . Partial Spotted 300 | . . . . . 15 105 30 . . 15 15 60 . 30 15 15 . Lose Combat Pursuer 915 | . 15 . 30 15 . 180 45 . . 150 . 45 15 . . 240 180 Influence Decreases 4478 | 40 40 68 32 77 59 85 478 46 25 216 400 586 460 406 515 618 327 Entered New Map 1687 | . . 40 . . 19 . 200 46 15 6 162 139 170 256 255 282 97 Time Decay 1961 | 40 40 28 7 67 40 . 278 . . . 238 427 190 150 110 206 140 Lost Part 510 | . . . 5 10 . 85 . . 10 130 . . 20 . 70 90 90 Lost Ally 320 | . . . 20 . . . . . . 80 . 20 80 . 80 40 . Squads Dispatched 22 | . 4 . 3 1 . . 3 . 1 . . 1 1 . 1 4 3 Investigation 3 | . 1 . . . . . 1 . . . . . 1 . . . . Extermination 3 | . . . . . . . 1 . . . . . . . . 1 1 Reinforcement 14 | . 3 . 3 1 . . 1 . 1 . . 1 . . 1 1 2 Assault 2 | . . . . . . . . . . . . . . . . 2 . Garrison . | . . . . . . . . . . . . . . . . . . Intercept . | . . . . . . . . . . . . . . . . . . Searches Triggered . | . . . . . . . . . . . . . . . . . . Construction Impeded 1 | . . . . 1 . . . . . . . . . . . . . Haulers Reinforced 1 | . . . . . . . . . . . . . . . 1 . . Active Scanning Responses . | . . . . . . . . . . . . . . . . . . Cargo Convoy Interrupts . | . . . . . . . . . . . . . . . . . . Stealth | -11 -10 -9 -9 -8 -7 -7 -7 -6 -6 -6 -5 -5 -5 -5 -5 -4 -4 --------- Run | Yrd Mat Mat Sto Mat Fac Gar Fac Fac DSF Gar Fac Ext Cet Arc Hub Fac Arm Distress Signals 16 | . 1 1 . 2 . . . . . . . 7 1 . 1 3 . Communications Jammed 9 | . . . . . . . . . . . . 7 . . 2 . . Distress Signals 9 | . . . . . . . . . . . . 7 . . 2 . . Times Spotted 200 | . 8 1 10 5 2 31 9 . 3 25 . 18 15 10 12 21 30 Peak Tracking Total 18 | . 5 2 7 3 2 18 4 . 4 13 . 2 5 2 4 10 17 Tactical Retreats 26 | . 1 . 2 1 . 4 2 . . 3 . 3 1 . . 6 3 Traps | -11 -10 -9 -9 -8 -7 -7 -7 -6 -6 -6 -5 -5 -5 -5 -5 -4 -4 ------- Run | Yrd Mat Mat Sto Mat Fac Gar Fac Fac DSF Gar Fac Ext Cet Arc Hub Fac Arm Traps Triggered 15 | . . . . . . 5 1 . 2 . . 6 . . . 1 . Indirectly . | . . . . . . . . . . . . . . . . . . Trap Hack Attempts . | . . . . . . . . . . . . . . . . . . Triggered . | . . . . . . . . . . . . . . . . . . Disarmed . | . . . . . . . . . . . . . . . . . . Reprogrammed . | . . . . . . . . . . . . . . . . . . Reused . | . . . . . . . . . . . . . . . . . . Traps Extracted . | . . . . . . . . . . . . . . . . . . Installed . | . . . . . . . . . . . . . . . . . . Triggered . | . . . . . . . . . . . . . . . . . . Objects Rigged 10 | . . . . . 4 . . . . . 6 . . . . . . Exploded 1 | . . . . . . . . . . . 1 . . . . . . Machines | -11 -10 -9 -9 -8 -7 -7 -7 -6 -6 -6 -5 -5 -5 -5 -5 -4 -4 ---------- Run | Yrd Mat Mat Sto Mat Fac Gar Fac Fac DSF Gar Fac Ext Cet Arc Hub Fac Arm Machines Disabled 28 | . 1 . . 1 . 1 . . . 3 5 2 2 3 9 . 1 Max in Single Turn 7 | . 1 . . 1 . 1 . . . 2 3 . 1 1 7 . 1 Garrison Access 3 | . . . . . . . . . . . 1 . . . 1 1 . Garrison Relay 2 | . . . . . . 1 . . . 1 . . . . . . . Phase Generator 2 | . . . . . . 1 . . . 1 . . . . . . . Network Hub 1 | . . . . . . . . . . . . . . . 1 . . Machines Repaired . | . . . . . . . . . . . . . . . . . . Machines Dismantled . | . . . . . . . . . . . . . . . . . . Machines Sabotaged . | . . . . . . . . . . . . . . . . . . Overloaded Fab Kills . | . . . . . . . . . . . . . . . . . . Hacking | -11 -10 -9 -9 -8 -7 -7 -7 -6 -6 -6 -5 -5 -5 -5 -5 -4 -4 --------- Run | Yrd Mat Mat Sto Mat Fac Gar Fac Fac DSF Gar Fac Ext Cet Arc Hub Fac Arm Machines Accessed 49 | . 1 . 2 3 2 2 5 1 . 2 8 12 3 1 4 1 2 Terminals 41 | . 1 . 2 2 1 2 3 1 . 2 6 12 3 . 3 1 2 Fabricators . | . . . . . . . . . . . . . . . . . . Repair Stations . | . . . . . . . . . . . . . . . . . . Recycling Units 2 | . . . . . . . 2 . . . . . . . . . . Scanalyzers 2 | . . . . 1 . . . . . . 1 . . . . . . Garrison Access 3 | . . . . . 1 . . . . . 1 . . . 1 . . Total Hacks 147 | . 3 . 3 8 6 3 11 2 . 5 21 32 6 25 11 5 6 Successful 68 | . . . 1 2 5 . 5 1 . 1 13 9 4 25 1 1 . Failed 79 | . 3 . 2 6 1 3 6 1 . 4 8 23 2 . 10 4 6 Catastrophic 18 | . 2 . 1 1 . 1 3 . . 1 1 1 . . 3 2 2 Database Lockouts . | . . . . . . . . . . . . . . . . . . Manual 61 | . 3 . 2 4 4 2 7 . . 1 7 9 1 . 10 5 6 Terminals 102 | . 3 . 3 4 5 3 5 2 . 5 15 32 6 . 8 5 6 Fabricators . | . . . . . . . . . . . . . . . . . . Repair Stations . | . . . . . . . . . . . . . . . . . . Recycling Units 6 | . . . . . . . 6 . . . . . . . . . . Scanalyzers 8 | . . . . 4 . . . . . . 4 . . . . . . Garrison Access 6 | . . . . . 1 . . . . . 2 . . . 3 . . Terminal Hacks 51 | . . . 1 1 2 . 1 1 . 1 5 9 4 25 . 1 . Record 30 | . . . . . 1 . . . . . . . 4 25 . . . Robot Schematic 1 | . . . . . . . . . . . 1 . . . . . . Robot Analysis 2 | . . . . . . . . . . . 1 1 . . . . . Open Door 9 | . . . 1 . . . . . . 1 1 6 . . . . . Open DSF 1 | . . . . . . . . 1 . . . . . . . . . Branch Access Points 1 | . . . . . . . . . . . . 1 . . . . . Terminal Index 6 | . . . . 1 1 . 1 . . . 1 1 . . . 1 . Registered Components 1 | . . . . . . . . . . . 1 . . . . . . Fabricator Hacks . | . . . . . . . . . . . . . . . . . . Repair Station Hacks . | . . . . . . . . . . . . . . . . . . Recycling Unit Hacks 2 | . . . . . . . 2 . . . . . . . . . . Recycle Component 1 | . . . . . . . 1 . . . . . . . . . . Process 1 | . . . . . . . 1 . . . . . . . . . . Scanalyzer 5 | . . . . 1 . . . . . . 4 . . . . . . Insert Component 1 | . . . . . . . . . . . 1 . . . . . . Analyze 1 | . . . . . . . . . . . 1 . . . . . . Retrieve Study 3 | . . . . 1 . . . . . . 2 . . . . . . Garrison Access Hacks 4 | . . . . . 1 . . . . . 2 . . . 1 . . Unlock Access 1 | . . . . . 1 . . . . . . . . . . . . Seal Access 2 | . . . . . . . . . . . 1 . . . 1 . . Coupler Status 1 | . . . . . . . . . . . 1 . . . . . . Unauthorized Hacks 6 | . . . . . 2 . 2 . . . 2 . . . . . . Terminals 5 | . . . . . 2 . 1 . . . 2 . . . . . . Detonate 2 | . . . . . 1 . . . . . 1 . . . . . . Operators 3 | . . . . . 1 . 1 . . . 1 . . . . . . Fabricators . | . . . . . . . . . . . . . . . . . . Repair Stations . | . . . . . . . . . . . . . . . . . . Recycling Units 1 | . . . . . . . 1 . . . . . . . . . . Recyclers 1 | . . . . . . . 1 . . . . . . . . . . Scanalyzers . | . . . . . . . . . . . . . . . . . . Garrison Access . | . . . . . . . . . . . . . . . . . . Data Cores Recovered 1 | . . . . . . . . . . . . . . . 1 . . Used . | . . . . . . . . . . . . . . . . . . Hacking Detections 40 | . 1 . 2 3 1 2 5 1 . 2 7 7 2 . 4 1 2 Full Trace Events 4 | . 1 . . . . . 1 . . 1 . . 1 . . . . Feedback Events . | . . . . . . . . . . . . . . . . . . Feedback Blocked . | . . . . . . . . . . . . . . . . . . Robot Schematics Acquired 1 | . . . . . . . . . . . 1 . . . . . . Robots Built . | . . . . . . . . . . . . . . . . . . Authchips . | . . . . . . . . . . . . . . . . . . Time . | . . . . . . . . . . . . . . . . . . Total Robot Build Rating . | . . . . . . . . . . . . . . . . . . Part Schematics Acquired . | . . . . . . . . . . . . . . . . . . Parts Built . | . . . . . . . . . . . . . . . . . . Authchips . | . . . . . . . . . . . . . . . . . . Time . | . . . . . . . . . . . . . . . . . . Total Part Build Rating . | . . . . . . . . . . . . . . . . . . Part Studies Acquired 3 | . . . . 1 . . . . . . 2 . . . . . . Parts Repaired . | . . . . . . . . . . . . . . . . . . Time . | . . . . . . . . . . . . . . . . . . Parts Recycled 1 | . . . . . . . 1 . . . . . . . . . . Recycled Matter 51 | . . . . . . . 51 . . . . . . . . . . Retrieved Matter . | . . . . . . . . . . . . . . . . . . Retrieved Components . | . . . . . . . . . . . . . . . . . . Parts Scanalyzed 1 | . . . . . . . . . . . 1 . . . . . . Part Schematics Acquired . | . . . . . . . . . . . . . . . . . . Parts Damaged . | . . . . . . . . . . . . . . . . . . Bothacking | -11 -10 -9 -9 -8 -7 -7 -7 -6 -6 -6 -5 -5 -5 -5 -5 -4 -4 ------------ Run | Yrd Mat Mat Sto Mat Fac Gar Fac Fac DSF Gar Fac Ext Cet Arc Hub Fac Arm Used RIF Installer 2 | . . . . . . 1 . . . 1 . . . . . . . Robot Detection 1 | . . . . . . . . . . 1 . . . . . . . Robots Hacked 2 | . . . . . . . . . . 1 . . . . . 1 . Non-combat . | . . . . . . . . . . . . . . . . . . Combat 2 | . . . . . . . . . . 1 . . . . . 1 . Robot Hacks Applied 2 | . . . . . . . . . . 1 . . . . . 1 . formatsys_high 2 | . . . . . . . . . . 1 . . . . . 1 . Relay Couplers Released 9 | . . . . . . 3 . . . 3 . . . . . 3 . Machine Destruction 9 | . . . . . . 3 . . . 3 . . . . . 3 . Attached 6 | . . . . . . . . . . 3 1 . . . . 2 . Fabnet Peak Effective % . | . . . . . . . . . . . . . . . . . . Robots Rewired 3 | . . . . . . . . . . 3 . . . . . . . Allies Hacked . | . . . . . . . . . . . . . . . . . . Hacks Repelled . | . . . . . . . . . . . . . . . . . . Allies | -11 -10 -9 -9 -8 -7 -7 -7 -6 -6 -6 -5 -5 -5 -5 -5 -4 -4 -------- Run | Yrd Mat Mat Sto Mat Fac Gar Fac Fac DSF Gar Fac Ext Cet Arc Hub Fac Arm Total Allies 18 | . . . . . . . . . . 4 . 8 5 . . 1 . Largest Group 8 | . . . . . . . . . . 3 . 8 7 6 5 1 . Highest-Rated Group 639 | . . . . . . . . . . 143 . 356 639 607 480 89 . Highest-Rated Ally 159 | . . . . . . . . . . 51 . 159 159 127 96 89 . Total Orders 5 | . . . 2 . . . . . . . . . 1 2 . . . ROAM 1 | . . . . . . . . . . . . . . 1 . . . GUARD 1 | . . . . . . . . . . . . . . 1 . . . AID 1 | . . . . . . . . . . . . . 1 . . . . EXPLORE 2 | . . . 2 . . . . . . . . . . . . . . Ally Attacks 244 | . . . . . . . . . . 23 . 71 63 51 31 5 . Total Damage 8215 | . . . . . . . . . . 808 . 1727 2303 1799 1393 185 . Kills 40 | . . . . . . . . . . 6 . 12 11 4 7 . . Allies Corrupted . | . . . . . . . . . . . . . . . . . . Allies Melted . | . . . . . . . . . . . . . . . . . . Intel | -11 -10 -9 -9 -8 -7 -7 -7 -6 -6 -6 -5 -5 -5 -5 -5 -4 -4 ------- Run | Yrd Mat Mat Sto Mat Fac Gar Fac Fac DSF Gar Fac Ext Cet Arc Hub Fac Arm Active Infowar (turns) 5393 | 103 152 322 120 192 119 335 595 11 41 213 506 1184 397 303 238 265 297 Optics 3859 | . 35 322 120 191 119 335 595 11 41 213 506 1184 8 . . . 179 Sensors 3379 | . . 318 120 192 119 1 . . . . 393 1184 397 287 238 130 . Terrain 306 | . . . . 186 119 1 . . . . . . . . . . . Seismic 1037 | 103 138 319 93 192 119 73 . . . . . . . . . . . Triangulation 353 | . . . . . . . . . . . . . . . . 109 244 Cloaking 2 | . . . . . . . . . . . . . . . . . 2 Jamming 2924 | . . . . . . . . . . . 418 1184 397 303 238 265 119 ECM 6 | . . . . . . . 4 . . . . . . . . . 2 Robot Analysis Total 2 | . . . . . . . . . . . 1 1 . . . . . Derelict Logs Recovered . | . . . . . . . . . . . . . . . . . . Drone Launches 2 | . . . 2 . . . . . . . . . . . . . . Drone Recoveries . | . . . . . . . . . . . . . . . . . . Exploration | -11 -10 -9 -9 -8 -7 -7 -7 -6 -6 -6 -5 -5 -5 -5 -5 -4 -4 ------------- Run | Yrd Mat Mat Sto Mat Fac Gar Fac Fac DSF Gar Fac Ext Cet Arc Hub Fac Arm Turns Passed 5637 | 163 152 322 120 192 119 335 608 11 41 213 506 1184 397 303 238 436 297 Spaces Moved 7830 | 98 163 196 252 339 309 613 927 31 81 290 705 1622 404 347 422 596 435 Core 253 | 6 . . . . . . . . . . . 2 . . 1 233 11 Treads . | . . . . . . . . . . . . . . . . . . Legs 70 | . . . . . . . . . . . . . . . . 70 . Wheels 170 | 92 78 . . . . . . . . . . . . . . . . Hover 4 | . . . . . . . . . . . . 4 . . . . . Flight 7333 | . 85 196 252 339 309 613 927 31 81 290 705 1616 404 347 421 293 424 Fastest Speed 29 | 50 37 34 34 29 29 29 29 30 30 30 34 37 37 37 37 40 30 Average Speed 38 | 82 59 34 34 30 29 29 31 30 30 31 36 38 37 37 37 67 41 Slowest Speed 450 | 150 200 37 114 32 29 32 102 30 30 35 37 450 117 37 200 200 150 Overloaded Moves . | . . . . . . . . . . . . . . . . . . Propulsion Burnouts . | . . . . . . . . . . . . . . . . . . Robots Hopped 39 | . . 3 1 . 1 . 3 . . 12 2 8 . . 1 6 2 Potential Cave-ins . | . . . . . . . . . . . . . . . . . . Cave-ins Triggered . | . . . . . . . . . . . . . . . . . . Exploration Rate (%) 38 | 4 31 11 44 27 13 53 24 2 79 43 13 87 78 97 29 20 41 Regions Visited 17 Branch Regions 6 Pre-discovered Areas . | . . . . . . . . . . . . . . . . . . Known Exits Taken 12 | . 1 1 1 1 1 . 1 1 . . 1 1 1 1 1 . . Unknown Exits Taken 2 | 1 . . . . . . . . . . . . . . . 1 . Scrap Searched . | . . . . . . . . . . . . . . . . . . Spaces Dug 4 | . 1 . . 2 . . . . . . . . 1 . . . . Terrain Destroyed 532 | . 1 . . 31 . 47 4 . . 76 104 6 85 15 163 . . Melee . | . . . . . . . . . . . . . . . . . . Projectile 11 | . 1 . . 2 . . . . . . . . 2 6 . . . AOE 521 | . . . . 29 . 47 4 . . 76 104 6 83 9 163 . . Terrain Rammed . | . . . . . . . . . . . . . . . . . . Walls Destroyed . | . . . . . . . . . . . . . . . . . . Machines Disabled . | . . . . . . . . . . . . . . . . . . Actions | -11 -10 -9 -9 -8 -7 -7 -7 -6 -6 -6 -5 -5 -5 -5 -5 -4 -4 --------- Run | Yrd Mat Mat Sto Mat Fac Gar Fac Fac DSF Gar Fac Ext Cet Arc Hub Fac Arm Total 10002 | 133 191 447 283 417 322 739 1223 31 97 380 908 2133 602 454 487 620 535 Wait 1527 | . . 246 22 43 . 25 260 . . 71 134 408 149 58 54 7 50 Move 7744 | 97 162 189 249 338 307 612 920 30 81 272 700 1605 403 346 419 583 431 Hop 32 | . . 3 1 . 1 . 3 . . 5 2 8 . . 1 6 2 Pick Up 57 | 3 4 1 3 7 2 5 5 . . 2 10 4 2 1 1 4 3 Fast Attach 65 | 8 3 1 3 4 3 1 8 . 1 3 8 1 5 1 . 7 8 Attach 51 | . 1 2 1 3 . 5 1 1 . 2 14 1 5 1 2 5 7 Detach 33 | . 1 1 . 3 1 . 1 . . . 9 . 5 1 1 3 7 Swap 14 | . 1 2 . 3 . 3 . . . 2 . . 1 2 . . . Drop 50 | 1 5 2 4 7 3 . 7 . . . 6 4 5 2 1 2 1 Fire 213 | 24 14 . . 9 5 15 14 . . 9 25 20 27 42 8 . 1 Melee 16 | . . . . . . 2 . . . 13 . . . . . 1 . Ram 38 | . . . . . . . 4 . . . . 7 . . . 2 25 Kick . | . . . . . . . . . . . . . . . . . . Crush . | . . . . . . . . . . . . . . . . . . Escape Stasis 161 | . . . . . . 71 . . 15 . . 75 . . . . . Rewire 1 | . . . . . . . . . . 1 . . . . . . . Trap . | . . . . . . . . . . . . . . . . . . Miscellaneous . | . . . . . . . . . . . . . . . . . . Route ------- -11/Scrapyard -10/Materials -9/Materials -9/Storage -8/Materials -7/Factory -7/Garrison -7/Factory -6/Factory -6/DSF -6/Garrison -5/Factory (discovered 2 exits: *Fac / *Ext) -5/Extension (discovered 3 exits: *Fac x2 / *Cet) -5/Cetus (discovered 3 exits: *Fac x2 / *Arc) -5/Archives (discovered 3 exits: *Fac / *Hub x2) -5/Hub_04(d) -4/Factory (discovered 2 exits: [*Res] / *Arm) -4/Armory History --------- Turn | Location | Event 24 | -11/Scrapyard | Discovered new exit (range 14) 164 | -11/Scrapyard | Entered Materials 165 | -10/Materials | Met a group of wandering Federalists 228 | -10/Materials | Discovered new exit (range 16) 315 | -10/Materials | Identified exit to Materials 316 | -10/Materials | Entered another Materials area 316 | -9/Materials | Evolved 2 slots: Utility x2 321 | -9/Materials | Discovered new exit (range 8) 323 | -9/Materials | Identified exit to Storage 583 | -9/Materials | Build established: Scavenger-Scout 638 | -9/Materials | Entered Storage 752 | -9/Storage | Discovered new exit (range 18) 758 | -9/Storage | Identified exit to Materials 758 | -9/Storage | Entered Materials 758 | -8/Materials | Evolved 2 slots: Propulsion x1, Utility x1 916 | -8/Materials | Discovered new exit (range 8) 918 | -8/Materials | Identified exit to Factory 950 | -8/Materials | Entered Factory 950 | -7/Factory | Evolved 2 slots: Utility x2 1069 | -7/Factory | Identified exit to Garrison 1069 | -7/Factory | Entered Garrison 1142 | -7/Garrison | Phase Generator disabled 1173 | -7/Garrison | Lost 3 parts (2u1w) 1328 | -7/Garrison | Lost 3 parts (1p2u) 1348 | -7/Garrison | Discovered new exit (range 12) 1350 | -7/Garrison | Identified exit to Factory 1372 | -7/Garrison | Installed Relay Interface Framework 1389 | -7/Garrison | Triggered checkpoint 1389 | -7/Garrison | Garrison Relay disabled 1392 | -7/Garrison | Lost 3 parts (1p1n1w) 1404 | -7/Garrison | Entered Factory 1743 | -7/Factory | Build established: Sprinter 1802 | -7/Factory | Core integrity fell below 50% 2006 | -7/Factory | Discovered new exit (range 9) 2012 | -7/Factory | Identified exit to Factory 2012 | -7/Factory | Entered another Factory area 2012 | -6/Factory | Evolved 2 slots: Power x1, Propulsion x1 2023 | -6/Factory | Identified exit to DSF 2023 | -6/Factory | Entered DSF 2041 | -6/DSF | Additional patrols routed to DSF 2059 | -6/DSF | Discovered new exit (range 19) 2064 | -6/DSF | Identified exit to Garrison 2064 | -6/DSF | Entered Garrison 2117 | -6/Garrison | Phase Generator disabled 2149 | -6/Garrison | Spotted B-75 Beast 2234 | -6/Garrison | Discovered new exit (range 15) 2238 | -6/Garrison | Triggered checkpoint 2238 | -6/Garrison | Lost 4 allies 2239 | -6/Garrison | Garrison Relay disabled 2263 | -6/Garrison | Expanded RIF knowledge: Robot Detection 2277 | -6/Garrison | Identified exit to Factory 2277 | -6/Garrison | Entered Factory 2277 | -5/Factory | Evolved 2 slots: Utility x2 2306 | -5/Factory | Lost 13 parts (2p3n5u3w) 2350 | -5/Factory | Discovered new exit (range 18) 2355 | -5/Factory | Identified exit to Factory 2671 | -5/Factory | Build established: Scout 2782 | -5/Factory | Discovered new exit (range 6) 2783 | -5/Factory | Identified exit to Extension 2783 | -5/Factory | Entered Extension 2883 | -5/Extension | Warlord forces began an assault 2900 | -5/Extension | Spotted B-75 Beast 3046 | -5/Extension | Lost 3 allies 3095 | -5/Extension | Spotted B-75 Beast 3139 | -5/Extension | Rescued A7 3305 | -5/Extension | Discovered exit to Factory (range 3) 3361 | -5/Extension | Rescued a captive Derelict 3365 | -5/Extension | Rescued a captive Derelict 3396 | -5/Extension | Identified exit to Cetus 3466 | -5/Extension | Rescued a captive Derelict 3469 | -5/Extension | Rescued a captive Derelict 3615 | -5/Extension | Rescued a captive Derelict 3616 | -5/Extension | Rescued a captive Derelict 3687 | -5/Extension | Rescued a captive Derelict 3917 | -5/Extension | Discovered exit to Factory (range 10) 3967 | -5/Extension | Entered Cetus 3967 | -5/Cetus | Accompanied by 7 allies (A7) 3972 | -5/Cetus | Acquired a Cetus Manufacturing Module code from A7 3972 | -5/Cetus | Spotted Cetus Guard 3972 | -5/Cetus | Spotted Cetus Guard 3972 | -5/Cetus | Spotted Cetus Guard 3972 | -5/Cetus | Spotted Cetus Guard 3982 | -5/Cetus | Discovered exit to Factory (range 16) 4004 | -5/Cetus | Destroyed Cetus Guard 4008 | -5/Cetus | Allies destroyed Cetus Guard 4011 | -5/Cetus | Destroyed Cetus Guard 4017 | -5/Cetus | Allies destroyed Cetus Guard 4033 | -5/Cetus | Lost 5 allies 4067 | -5/Cetus | Started Cetus Manufacturing Module 4092 | -5/Cetus | Manufactured an Enhanced Grunt 4117 | -5/Cetus | Manufactured an Enhanced Grunt 4142 | -5/Cetus | Manufactured an Enhanced Grunt 4167 | -5/Cetus | Manufactured an Enhanced Grunt 4192 | -5/Cetus | Manufactured an Enhanced Grunt 4209 | -5/Cetus | Discovered new exit (range 15) 4214 | -5/Cetus | Identified exit to Archives 4222 | -5/Cetus | Spotted Cetus Guard 4223 | -5/Cetus | Spotted Cetus Guard 4230 | -5/Cetus | Spotted Cetus Guard 4231 | -5/Cetus | Spotted Cetus Guard 4255 | -5/Cetus | Allies destroyed Cetus Guard 4257 | -5/Cetus | Allies destroyed Cetus Guard 4258 | -5/Cetus | Allies destroyed Cetus Guard 4280 | -5/Cetus | Discovered exit to Factory (range 15) 4283 | -5/Cetus | Met Revision 17 4364 | -5/Cetus | Entered Archives 4364 | -5/Archives | Accompanied by 6 allies (A7) 4425 | -5/Archives | Unable to access archive contents 4429 | -5/Archives | Unable to access archive contents 4430 | -5/Archives | Discovered exit to Factory (range 15) 4432 | -5/Archives | Unable to access archive contents 4434 | -5/Archives | Discovered new exit (range 16) 4436 | -5/Archives | Unable to access archive contents 4436 | -5/Archives | Unable to access archive contents 4438 | -5/Archives | Discovered new exit (range 15) 4443 | -5/Archives | Identified exit to Hub_04(d) 4465 | -5/Archives | Build established: Commander-Mutant 4667 | -5/Archives | Entered Hub_04(d) 4667 | -5/Hub_04(d) | Accompanied by 5 allies 4751 | -5/Hub_04(d) | Discovered exit to Factory (range 13) 4892 | -5/Hub_04(d) | Network Hub disabled 4899 | -5/Hub_04(d) | Spotted Lightning 4901 | -5/Hub_04(d) | Spotted Lightning 4904 | -5/Hub_04(d) | Spotted Lightning 4905 | -5/Hub_04(d) | Entered Factory 4905 | -4/Factory | Accompanied by 1 ally 4905 | -4/Factory | Evolved 2 slots: Utility x2 4936 | -4/Factory | Lost 7 parts (2p3n1u1w) 5027 | -4/Factory | Build established: Hacker-Mutant 5070 | -4/Factory | Lost 3 parts (1p1u1w) 5203 | -4/Factory | Discovered new exit (range 8) 5220 | -4/Factory | Found Prototype Processor 5220 | -4/Factory | Identified Exp. Targeting Computer 5222 | -4/Factory | Found Exp. Targeting Computer 5297 | -4/Factory | Spotted B-86 Titan 5308 | -4/Factory | Discovered new exit (range 15) 5324 | -4/Factory | Spotted B-86 Titan 5341 | -4/Factory | Entered Armory 5342 | -4/Armory | Core integrity fell below 50% 5484 | -4/Armory | Found Prototype Device 5484 | -4/Armory | Identified Exp. ECM Suite 5494 | -4/Armory | Found Prototype Processor 5494 | -4/Armory | Identified Exp. Terrain Scan Processor 5515 | -4/Armory | Build established: Infiltrator-Mutant 5630 | -4/Armory | Core integrity fell below 20% 5638 | -4/Armory | Destroyed by G-73 Enforcer with Phase Gun Last Messages --------------- 05614_ Acquired Prototype Power Core. 05614_ Identified Lgt. Neutrino Core. 05616_ Acquired Prototype Flight Unit. 05616_ Identified Cld. Nuclear Pulse Thruster. 05618_ Acquired Cld. Nuclear Pulse Thruster. 05621_ Acquired Prototype Reactor. 05621_ Identified Fusion Reactor. 05629_ Fabricator disabled. 05629_ Compression Vault explodes. 05630_ Critical hit (Burn: +50). 05631_ Cld. Nuclear Pulse Thruster destroyed. 05631_ Compression Vault explodes. 05631_ Nuclear Pulse Array destroyed. 05632_ The unstable cave ceiling collapses. 05632_ Armor Integrity Analyzer destroyed. 05633_ Dropped Exp. ECM Suite. 05634_ System corrupted: Energy discharge (-21). 05636_ Adv. Cloaking Device destroyed. 05636_ Adv. Cooling System destroyed. 05638_ Cld. Nuclear Pulse Thruster destroyed. Map ----- +----------------------------------------------------+ | ?????????????????????????????????????????????????? | | ?????????????????????????????????????????????????? | | ?????????????????????????????????????????????????? | | ?????????????????????????????????????????????????? | | ?????????????????????????????????????????????????? | | ?????????????????????????????????????????????????? | | ?????????????????????????????????????????????????? | | ?????????????????????????????????????????????????? | | ?????????????????????????????????????????????????? | | ?????????????????????????????????????????????????? | | ?????????????????????????????????? ?????????????? | | ?????????????????????????????????? ????????????? | | ??????????????????????????????????? ???????????? | | ???????????????????????????????????? ??????????? | | ????????????????????????????????????? ?????????? | | ?????????????????????????????????????? ????????? | | ??????????????????????????????????????? ???????? | | ??????????????##+####+###################+######## | | ??????????????# g g ^ | | ??????????????# g | | ??????????????+ """ """ g g !!! d | | ??????????????# """ """ !! g | | ??????????????# """ """ !! | | ??????????????# | | ??????????????# ! | | ??????????????# @ "" | | ??????????????# ############## #""F"" # | | ??????????????????????????????# """ # | | ??????????????????????????????## # # # # ## | | ???????????????????????????????##################? | | ?????????????????????????????????????????????????? | | ?????????????????????????????????????????????????? | | ?????????????????????????????????????????????????? | | ?????????????????????????????????????????????????? | | ?????????????????????????????????????????????????? | | ?????????????????????????????????????????????????? | | ?????????????????????????????????????????????????? | | ?????????????????????????????????????????????????? | | ?????????????????????????????????????????????????? | | ?????????????????????????????????????????????????? | | ?????????????????????????????????????????????????? | | ?????????????????????????????????????????????????? | | ?????????????????????????????????????????????????? | | ?????????????????????????????????????????????????? | | ?????????????????????????????????????????????????? | | ?????????????????????????????????????????????????? | | ?????????????????????????????????????????????????? | | ?????????????????????????????????????????????????? | | ?????????????????????????????????????????????????? | | ?????????????????????????????????????????????????? | +----------------------------------------------------+ Best States ------------- Heat Dissipation 74 Coolant Potential 80 Energy Generation 27 Energy Capacity 295 Matter Stores 300 Matter Capacity 300 Sight Range 23 Robot Scan Range 15 Terrain Scan Range 16 Terrain Scan Density 1010 ECM Strength 2 Jamming Range 12 Corruption Containment 8 Evasion (%) 64 Targeting Accuracy 12 Core Analysis 6 Armor Integrity Analysis 30 Offensive Hacking 12 Defensive Hacking 12 Relay Coupler Types 2 Relay Coupler Value 35 Item Schematics ----------------- None Robot Schematics ------------------ S-27 Virus | -5/Factory | Hacked Fabricated ------------ Nothing Repaired ---------- Nothing Studied --------- Cesium-ion Thruster | -8/Materials | Hacked Lightning Gun | -5/Factory | Hacked Mic. Nuclear Core | -5/Factory | Hacked Alien Tech Used ----------------- None Achievements -------------- Prison Break Project G-00 Revising The Future Challenges ------------ None Game ------ Seed CentriumSmartChronowheel Manual? 0 Play Time 02:18:15 Cumulative 46.7 hours Start 2025.12.23 @ 02:03:11 End 2025.12.23 @ 04:46:02 Sessions 1 Manual Loads 0 Difficulty Rogue Special Mode None Game No. 42 Rogue 42 Adventurer 0 Explorer 0 Win Type - Total 0 Types 0/0/0/0/0/0/0/0/0/0 Lore% 33 Gallery% 38 Achievement% 29 Wizard Run 0 Options --------- Layout 0 ASCII 0 Keyboard 0 Movement Mouse Keybinds 0 Fullscreen 2 Font 24/Smallcaps Map View 76x50 Zoom Use 0% Tactical HUD 1 Map Filters NONE Filters NONE Steam 1 RUN: ee62aaca-feea-4825-a4bd-8ef0d5e3f178